fUST/lending_fUST_20250925
["ID","MTS","AMOUNT","RATE_DAILY","PERIOD"]
[387665751,1758802248219,-151.0,0.000249,7]
[387665752,1758802248232,-151.0,0.000249,7]
[387665753,1758802248242,-151.0,0.000249,7]
[387665754,1758802248252,-151.0,0.000249,7]
[387665755,1758802248262,-151.0,0.000249,7]
[387665756,1758802248273,-252.698552,0.000249,7]
[387665757,1758802248283,-252.698552,0.000249,7]
[387665758,1758802248298,-151.0,0.000249,7]
[387665759,1758802248308,-151.0,0.000249,7]
[387665760,1758802248318,-151.0,0.000249,7]
[387665761,1758802248329,-151.0,0.000249,7]
[387665762,1758802248341,-151.0,0.000249,7]
[387665763,1758802248350,-287.333021,0.000249,7]
[387665764,1758802248360,-287.333021,0.000249,7]
[387665765,1758802248372,-287.333021,0.000249,7]
[387665766,1758802248384,-287.333021,0.000249,7]
[387665767,1758802248394,-236.180361,0.000249,7]
[387665768,1758802248404,-236.180361,0.000249,7]
[387665769,1758802248414,-236.180361,0.000249,7]
[387665770,1758802248425,-236.180361,0.000249,7]
[387665771,1758802248434,-151.0,0.000249,7]
[387665772,1758802248444,-151.0,0.000249,7]
[387665773,1758802248454,-151.0,0.000249,7]
[387665774,1758802248464,-151.0,0.000249,7]
[387665775,1758802248474,-151.0,0.000249,7]
[387665776,1758802248484,-151.0,0.000249,7]
[387665777,1758802248494,-151.0,0.000249,7]
[387665778,1758802248503,-151.0,0.000249,7]
[387665779,1758802248513,-151.0,0.000249,7]
[387665780,1758802248523,-43814.77199451,0.000249,2]
[387665781,1758802248533,-151.0,0.000249,7]
[387665782,1758802248543,-151.0,0.000249,7]
[387665783,1758802248554,-151.0,0.000249,7]
[387665784,1758802248564,-151.0,0.000249,7]
[387665785,1758802248575,-151.0,0.000249,7]
[387665786,1758802248586,-155.210128,0.000249,7]
[387665787,1758802248596,-151.0,0.000249,7]
[387665788,1758802248606,-151.0,0.000249,7]
[387665789,1758802248616,-151.0,0.000249,7]
[387665790,1758802248628,-151.0,0.000249,7]
[387665791,1758802248641,-151.0,0.000249,7]
[387665792,1758802248651,-151.0,0.000249,7]
[387665793,1758802248662,-151.0,0.000249,7]
[387665794,1758802248673,-151.0,0.000249,7]
[387665795,1758802248687,-151.0,0.000249,7]
[387665796,1758802248697,-151.0,0.000249,7]
[387665797,1758802248707,-151.0,0.000249,7]
[387665798,1758802248716,-151.0,0.000249,7]
[387665799,1758802248727,-151.0,0.000249,7]
[387665800,1758802248737,-443.046888,0.000249,7]
[387665801,1758802248746,-151.0,0.000249,7]
[387665802,1758802248756,-443.046888,0.000249,7]
[387665803,1758802248767,-443.046888,0.000249,7]
[387665804,1758802248777,-443.046888,0.000249,7]
[387665805,1758802248787,-151.0,0.000249,7]
[387665806,1758802248797,-151.0,0.000249,7]
[387665807,1758802248807,-151.0,0.000249,7]
[387665808,1758802248818,-151.0,0.000249,7]
[387665809,1758802248828,-151.0,0.000249,7]
[387665810,1758802248839,-151.0,0.000249,7]
[387665811,1758802248849,-151.0,0.000249,7]
[387665812,1758802248859,-151.0,0.000249,7]
[387665813,1758802248869,-152.231449,0.000249,7]
[387665814,1758802248879,-151.0,0.000249,7]
[387665815,1758802248889,-151.0,0.000249,7]
[387665816,1758802248968,-151.0,0.000249,7]
[387665817,1758802248978,-151.0,0.000249,7]
[387665818,1758802248988,-151.0,0.000249,7]
[387665819,1758802248998,-160.146207,0.000249,7]
[387665820,1758802249008,-160.146207,0.000249,7]
[387665821,1758802249018,-151.0,0.000249,7]
[387665822,1758802249029,-160.146207,0.000249,7]
[387665823,1758802249040,-160.146207,0.000249,7]
[387665824,1758802249050,-151.0,0.000249,7]
[387665825,1758802249060,-151.0,0.000249,7]
[387665826,1758802249070,-151.0,0.000249,7]
[387665827,1758802249081,-151.0,0.000249,7]
[387665828,1758802249101,-151.0,0.000249,7]
[387665829,1758802249113,-151.0,0.000249,7]
[387665830,1758802249123,-201.959939,0.000249,7]
[387665831,1758802249134,-151.0,0.000249,7]
[387665832,1758802249145,-201.959939,0.000249,7]
[387665833,1758802249155,-151.0,0.000249,7]
[387665834,1758802249166,-201.959939,0.000249,7]
[387665835,1758802249177,-201.959939,0.000249,7]
[387665836,1758802249188,-259.662912,0.000249,7]
[387665837,1758802249198,-259.662912,0.000249,7]
[387665838,1758802249208,-259.662912,0.000249,7]
[387665839,1758802249219,-259.662912,0.000249,7]
[387665840,1758802249229,-151.0,0.000249,7]
[387665841,1758802249239,-151.0,0.000249,7]
[387665842,1758802249249,-151.0,0.000249,7]
[387665843,1758802249259,-151.0,0.000249,7]
[387665844,1758802249269,-151.0,0.000249,7]
[387665845,1758802249280,-151.0,0.000249,7]
[387665846,1758802249293,-151.0,0.000249,7]
[387665847,1758802249311,-151.0,0.000249,7]
[387665848,1758802249322,-255.660591,0.000249,7]
[387665849,1758802249333,-151.0,0.000249,7]
[387665850,1758802249344,-151.0,0.000249,7]
[387665851,1758802249355,-793.102103,0.000249,7]
[387665852,1758802249365,-151.0,0.000249,7]
[387665853,1758802249376,-793.102103,0.000249,7]
[387665854,1758802249387,-793.102103,0.000249,7]
[387665855,1758802249397,-793.102103,0.000249,7]
[387665856,1758802249406,-151.0,0.000249,7]
[387665857,1758802249416,-151.0,0.000249,7]
[387665858,1758802249426,-152.570141,0.000249,7]
[387665859,1758802249436,-151.0,0.000249,7]
[387665860,1758802249446,-151.0,0.000249,7]
[387665861,1758802249456,-151.0,0.000249,7]
[387665862,1758802249466,-9226.09655468,0.000249,2]
[387665863,1758802249560,-95891.39385523,0.000249,2]
[387665864,1758802249579,-2745.65101792,0.000249,2]
[387665865,1758802249590,-538.6149541,0.000249,2]
[387665866,1758802249939,-0.03304765,0.000199,2]
[387665867,1758802249957,-605.04476682,0.000199,2]
[387665868,1758802249967,-605.07781423,0.00020972,2]
[387665869,1758802249977,-605.07781423,0.00022044,2]
[387665870,1758802249987,-605.07781423,0.00023116,2]
[387665871,1758802249999,-170.04334,0.00024004,7]
[387665872,1758802250010,-151.0,0.0002403,7]
[387665873,1758802250020,-605.07781423,0.00024187,2]
[387665874,1758802250030,-33.11000585,0.000249,2]
[387665875,1758802250094,-12907.6542176,0.000249,2]
[387665876,1758802250366,-484.39830416,0.00019344,2]
[387665877,1758802250376,-311.21545223,0.00019344,2]
[387665878,1758802250388,-168.78454777,0.00019344,2]
[387665879,1758802250398,-480.0,0.00019344,2]
[387665880,1758802250407,-243.88419728,0.00019352,2]
[387665881,1758802250419,-376.68,0.00019352,2]
[387665882,1758802250431,-14207.96875989,0.00019352,2]
[387665883,1758802250443,-17534.36614958,0.00019352,2]
[387665884,1758802250454,-43391.60264235,0.00019352,2]
[387665885,1758802250467,-4564.10209538,0.00019352,2]
[387665886,1758802250478,-1939.45000001,0.00019352,2]
[387665887,1758802250493,-7979.61914602,0.00019352,2]
[387665888,1758802250504,-4087.5649808,0.00019352,2]
[387665908,1758802432158,-186.31506588,0.00019244,2]
[387665909,1758802432209,-1200.0,0.00019342,2]
[387665910,1758802432256,-300.0,0.00019342,2]
[387665911,1758802432304,-537.12080077,0.00019343,2]
[387665912,1758802432346,-480.0,0.00019343,2]
[387665913,1758802432394,-480.0,0.00019343,2]
[387665914,1758802432436,-480.0,0.00019343,2]
[387665915,1758802432477,-480.0,0.00019343,2]
[387665916,1758802432518,-480.0,0.00019343,2]
[387665917,1758802432561,-273.1382667,0.00019343,2]
[387665918,1758802468357,-206.8617333,0.00019343,2]
[387665919,1758802468490,-286.2542386,0.00019343,2]
[387665920,1758802468520,-298.16864275,0.00019343,2]
[387665921,1758802468551,-480.0,0.00019343,2]
[387665922,1758802468582,-480.0,0.00019343,2]
[387665923,1758802468616,-480.0,0.00019343,2]
[387665924,1758802468647,-480.0,0.00019343,2]
[387665925,1758802468677,-480.0,0.00019343,2]
[387665926,1758802468706,-273.55474109,0.00019343,2]
[387665927,1758802468734,-506.53731676,0.00019343,2]
[387665928,1758802468763,-480.0,0.00019343,2]
[387665929,1758802468790,-486.47323848,0.00019343,2]
[387665930,1758802478241,-208.09991042,0.00019342,2]
[387665931,1758802478272,-500.0,0.00019342,2]
[387665932,1758802478300,-420.300203,0.00019342,2]
[387665933,1758802478328,-500.0,0.00019342,2]
[387665934,1758802478356,-500.0,0.00019342,2]
[387665935,1758802478496,-500.0,0.00019342,2]
[387665936,1758802478527,-500.0,0.00019342,2]
[387665937,1758802478556,-185.27971072,0.00019342,2]
[387665938,1758802478586,-500.0,0.00019342,2]
[387665939,1758802478617,-500.0,0.00019342,2]
[387665940,1758802478646,-500.0,0.00019342,2]
[387665941,1758802488324,-500.0,0.00019342,2]
[387665942,1758802488355,-500.0,0.00019342,2]
[387665943,1758802488388,-500.0,0.00019342,2]
[387665944,1758802488419,-500.0,0.00019342,2]
[387665945,1758802488450,-500.0,0.00019342,2]
[387665946,1758802488480,-500.0,0.00019342,2]
[387665947,1758802488511,-500.0,0.00019342,2]
[387665948,1758802488542,-500.0,0.00019342,2]
[387665949,1758802488573,-500.0,0.00019342,2]
[387665950,1758802488602,-500.0,0.00019342,2]
[387665951,1758802533522,-300.0,0.00019341,2]
[387665952,1758802533553,-257.0,0.00019341,2]
[387665953,1758802533585,-1200.0,0.00019341,2]
[387665954,1758802533629,-365.86742473,0.00019342,2]
[387665955,1758802533659,-480.0,0.00019342,2]
[387665956,1758802533688,-493.41002964,0.00019342,2]
[387665957,1758802533719,-480.0,0.00019342,2]
[387665958,1758802533749,-486.81608339,0.00019342,2]
[387665959,1758802535771,461.6475741,0.00019342,2]
[387665960,1758802537133,-428.44292058,0.00019342,2]
[387665961,1758802541052,-71.55707942,0.00019342,2]
[387665962,1758802541075,-96.62459047,0.00019342,2]
[387665963,1758802543337,480.0,0.00019342,2]
[387665964,1758802543597,-192.03801123,0.00019342,2]
[387665965,1758802545625,-64.19686898,0.00019342,2]
[387665966,1758802545647,-184.28212306,0.00019342,2]
[387665967,1758802593605,-186.31506585,0.00019244,2]
[387665968,1758802593636,-480.0,0.00019342,2]
[387665969,1758802593667,-480.0,0.00019342,2]
[387665970,1758802593698,-341.76113108,0.00019342,2]
[387665971,1758802593728,-480.0,0.00019342,2]
[387665972,1758802593758,-498.28624876,0.00019342,2]
[387665973,1758802593787,-480.0,0.00019342,2]
[387665974,1758802593817,-480.0,0.00019342,2]
[387665975,1758802593847,-480.0,0.00019342,2]
[387665976,1758802593877,-480.0,0.00019342,2]
[387665977,1758802593907,-409.60182059,0.00019342,2]
[387665978,1758802608591,-2109.20881948,0.00019273,2]
[387665979,1758802608620,-480.0,0.00019342,2]
[387665980,1758802608652,-480.0,0.00019342,2]
[387665981,1758802608683,-480.0,0.00019342,2]
[387665982,1758802608714,-480.0,0.00019342,2]
[387665983,1758802608743,-480.0,0.00019342,2]
[387665984,1758802608772,-480.0,0.00019342,2]
[387665986,1758802638620,-888.0,0.00019341,2]
[387665987,1758802638650,-480.0,0.00019342,2]
[387665988,1758802638681,-480.0,0.00019342,2]
[387665989,1758802638713,-480.0,0.00019342,2]
[387665990,1758802638744,-480.0,0.00019342,2]
[387665991,1758802638774,-480.0,0.00019342,2]
[387665992,1758802638806,-480.0,0.00019342,2]
[387665993,1758802638838,-496.56485711,0.00019342,2]
[387665994,1758802638870,-480.0,0.00019342,2]
[387665995,1758802638900,-26.73924147,0.00019342,2]
[387665996,1758802648593,-457.40180284,0.00019342,2]
[387665997,1758802648621,-480.0,0.00019342,2]
[387665998,1758802648650,-480.0,0.00019342,2]
[387665999,1758802648680,-480.0,0.00019342,2]
[387666000,1758802648709,-484.39520527,0.00019342,2]
[387666001,1758802648738,-480.0,0.00019342,2]
[387666002,1758802648767,-480.0,0.00019342,2]
[387666003,1758802652827,3316.41598378,0.00019342,2]
[387666004,1758802658938,-2078.91251822,0.00019342,2]
[387666005,1758802668562,-10000.01,0.00019342,2]
[387666006,1758802668689,-10000.01,0.00019342,2]
[387666007,1758802678570,-10000.01,0.00019342,2]
[387666010,1758802851929,1000.0,0.00018342,2]
[387666090,1758803274220,257.679382,0.00018337,2]
[387666193,1758803435405,-186.31506585,0.00019239,2]
[387666195,1758803435415,-422.86332502,0.00019273,2]
[387666197,1758803435425,-220.10238665,0.00019273,2]
[387666199,1758803435437,-1186.03682635,0.00019273,2]
[387666201,1758803435448,-500.0,0.000193,2]
[387666203,1758803435458,-372.5,0.00019334,3]
[387666205,1758803435467,-186.25,0.00019334,3]
[387666207,1758803435477,-558.75,0.00019334,3]
[387666209,1758803435487,-249.0,0.00019337,2]
[387666211,1758803435496,-300.0,0.00019337,2]
[387666213,1758803435506,-168.0,0.00019337,2]
[387666215,1758803435516,-2042.96317365,0.00019338,2]
[387666216,1758803435528,-509.3453846,0.00019338,2]
[387666217,1758803435544,-13623.89981754,0.00019338,2]
[387666219,1758803435556,-9249.3592924,0.00019338,2]
[387666221,1758803435566,-500.0,0.00019338,2]
[387666223,1758803435577,-315.71787694,0.00019338,2]
[387666224,1758803435587,-550.65271454,0.00019338,2]
[387666226,1758803435602,-1200.0,0.00019338,2]
[387666228,1758803435612,-480.0,0.00019338,2]
[387666229,1758803435621,-480.0,0.00019338,2]
[387666231,1758803435633,-480.0,0.00019338,2]
[387666233,1758803435642,-480.0,0.00019338,2]
[387666235,1758803435651,-492.35202757,0.00019338,2]
[387666236,1758803435662,-482.86998673,0.00019338,2]
[387666237,1758803435672,-608.86015186,0.00019338,2]
[387666239,1758803435682,-1117.3618052,0.00019339,2]
[387666240,1758803435692,-4775.7106871,0.00019339,2]
[387666242,1758803435702,-480.0,0.00019339,2]
[387666244,1758803435711,-211.42827909,0.00019339,2]
[387666245,1758803435721,-580.737042,0.00019339,2]
[387666246,1758803435731,-480.0,0.0001934,2]
[387666247,1758803435743,-480.0,0.0001934,2]
[387666248,1758803435753,-299.95013655,0.0001934,2]
[387666251,1758803437838,-383.02064358,0.00019338,2]
[387666252,1758803437851,-500.0,0.00019338,2]
[387666253,1758803437861,-500.0,0.00019338,2]
[387666254,1758803437870,-500.0,0.00019338,2]
[387666255,1758803437879,-500.0,0.00019338,2]
[387666256,1758803437890,-500.0,0.00019338,2]
[387666257,1758803437899,-500.0,0.00019338,2]
[387666258,1758803437909,-500.0,0.00019338,2]
[387666259,1758803437919,-500.0,0.00019338,2]
[387666260,1758803437929,-500.0,0.00019338,2]
[387666261,1758803437938,-500.0,0.00019338,2]
[387666262,1758803437947,-500.0,0.00019338,2]
[387666263,1758803437956,-500.0,0.00019338,2]
[387666264,1758803437965,-500.0,0.00019338,2]
[387666265,1758803437979,-500.0,0.00019338,2]
[387666266,1758803437989,-180.04986345,0.0001934,2]
[387666267,1758803437999,-480.0,0.0001934,2]
[387666268,1758803438009,-364.01,0.0001934,2]
[387666269,1758803438019,-480.0,0.0001934,2]
[387666270,1758803438028,-480.0,0.0001934,2]
[387666271,1758803438038,-480.0,0.0001934,2]
[387666272,1758803438048,-480.0,0.0001934,2]
[387666273,1758803438058,-480.0,0.0001934,2]
[387666274,1758803438067,-480.0,0.0001934,2]
[387666275,1758803438077,-480.0,0.0001934,2]
[387666276,1758803438087,-480.0,0.0001934,2]
[387666277,1758803438101,-480.0,0.0001934,2]
[387666278,1758803438111,-480.0,0.0001934,2]
[387666279,1758803438121,-480.0,0.0001934,2]
[387666280,1758803438131,-246.02048556,0.0001934,2]
[387666281,1758803438144,-233.97951444,0.0001934,2]
[387666282,1758803438154,-480.0,0.0001934,2]
[387666283,1758803438164,-480.0,0.0001934,2]
[387666284,1758803438173,-480.0,0.0001934,2]
[387666285,1758803438184,-480.0,0.0001934,2]
[387666286,1758803438193,-480.0,0.0001934,2]
[387666287,1758803438203,-480.0,0.0001934,2]
[387666288,1758803438214,-480.0,0.0001934,2]
[387666289,1758803438223,-465.71,0.0001934,2]
[387666290,1758803438234,-480.0,0.0001934,2]
[387666291,1758803438243,-480.0,0.0001934,2]
[387666292,1758803438253,-62.79670214,0.0001934,2]
[387666293,1758803438265,-417.20329786,0.0001934,2]
[387666294,1758803438275,-480.0,0.0001934,2]
[387666295,1758803438285,-486.2176653,0.00019341,2]
[387666296,1758803438294,-480.0,0.00019341,2]
[387666297,1758803438304,-489.50382487,0.00019341,2]
[387666298,1758803438314,-480.0,0.00019341,2]
[387666299,1758803438323,-480.0,0.00019341,2]
[387666300,1758803438333,-480.0,0.00019341,2]
[387666301,1758803438342,-494.04610861,0.00019341,2]
[387666302,1758803438356,-480.0,0.00019341,2]
[387666303,1758803438366,-480.0,0.00019341,2]
[387666304,1758803438376,-480.0,0.00019341,2]
[387666305,1758803438385,-480.0,0.00019341,2]
[387666306,1758803438395,-483.76345548,0.00019341,2]
[387666307,1758803438405,-488.18590773,0.00019341,2]
[387666308,1758803438414,-480.0,0.00019341,2]
[387666309,1758803438423,-484.90621783,0.00019341,2]
[387666310,1758803438433,-480.0,0.00019341,2]
[387666311,1758803438442,-480.0,0.00019341,2]
[387666312,1758803438452,-500.0,0.00019341,2]
[387666317,1758803438556,-500.0,0.00019341,2]
[387666319,1758803438567,-480.0,0.00019341,2]
[387666322,1758803438577,-480.0,0.00019341,2]
[387666324,1758803438586,-360.6784953,0.00019341,2]
[387666326,1758803438596,-480.0,0.00019341,2]
[387666327,1758803438610,-480.0,0.00019341,2]
[387666330,1758803438620,-370.31130454,0.00019341,2]
[387666332,1758803438630,-467.29864486,0.00019341,2]
[387666333,1758803438640,-480.0,0.00019341,2]
[387666336,1758803438650,-481.25654967,0.00019341,2]
[387666337,1758803438661,-480.0,0.00019341,2]
[387666339,1758803438672,-480.0,0.00019341,2]
[387666340,1758803438683,-480.0,0.00019341,2]
[387666342,1758803438694,-480.0,0.00019341,2]
[387666344,1758803438704,-480.0,0.00019341,2]
[387666346,1758803438714,-480.0,0.00019341,2]
[387666349,1758803438725,-480.0,0.00019341,2]
[387666351,1758803438736,-480.0,0.00019341,2]
[387666353,1758803438746,-480.0,0.00019341,2]
[387666354,1758803438756,-480.0,0.00019341,2]
[387666356,1758803438766,-480.0,0.00019341,2]
[387666358,1758803438776,-480.0,0.00019341,2]
[387666360,1758803438785,-480.0,0.00019341,2]
[387666362,1758803438796,-480.0,0.00019341,2]
[387666365,1758803438805,-486.53041906,0.00019341,2]
[387666366,1758803438815,-171.93597487,0.00019341,2]
[387666368,1758803438825,-480.0,0.00019341,2]
[387666370,1758803438834,-480.0,0.00019341,2]
[387666372,1758803438845,-480.0,0.00019341,2]
[387666374,1758803438862,-480.0,0.00019341,2]
[387666376,1758803438872,-480.0,0.00019341,2]
[387666378,1758803438882,-480.0,0.00019341,2]
[387666380,1758803438892,-480.0,0.00019341,2]
[387666382,1758803438902,-480.0,0.00019341,2]
[387666385,1758803438913,-480.0,0.00019341,2]
[387666387,1758803438924,-480.0,0.00019341,2]
[387666389,1758803438934,-480.0,0.00019341,2]
[387666391,1758803438944,-485.83231119,0.00019341,2]
[387666393,1758803438953,-480.0,0.00019341,2]
[387666394,1758803438964,-480.0,0.00019341,2]
[387666396,1758803438974,-480.0,0.00019341,2]
[387666398,1758803438983,-480.0,0.00019341,2]
[387666400,1758803438994,-480.0,0.00019341,2]
[387666403,1758803439004,-480.0,0.00019341,2]
[387666404,1758803439014,-480.0,0.00019341,2]
[387666406,1758803439025,-480.0,0.00019341,2]
[387666409,1758803439035,-480.0,0.00019341,2]
[387666410,1758803439045,-480.0,0.00019341,2]
[387666412,1758803439056,-481.54225201,0.00019341,2]
[387666414,1758803439066,-540.5,0.00019341,2]
[387666416,1758803439076,-480.0,0.00019341,2]
[387666418,1758803439086,-480.0,0.00019341,2]
[387666420,1758803439096,-480.0,0.00019341,2]
[387666422,1758803439113,-480.0,0.00019341,2]
[387666424,1758803439123,-480.0,0.00019341,2]
[387666426,1758803439133,-480.0,0.00019341,2]
[387666428,1758803439144,-480.0,0.00019341,2]
[387666430,1758803439153,-480.0,0.00019341,2]
[387666432,1758803439163,-480.0,0.00019341,2]
[387666434,1758803439173,-480.0,0.00019341,2]
[387666436,1758803439183,-480.0,0.00019341,2]
[387666438,1758803439193,-480.0,0.00019341,2]
[387666440,1758803439202,-495.5,0.00019341,2]
[387666442,1758803439212,-480.0,0.00019341,2]
[387666444,1758803439222,-480.0,0.00019341,2]
[387666446,1758803439232,-529.37510067,0.00019341,2]
[387666448,1758803439242,-488.99272708,0.00019341,2]
[387666451,1758803439252,-480.0,0.00019341,2]
[387666452,1758803439262,-483.67943538,0.00019341,2]
[387666456,1758803439272,-421.69987645,0.00019341,2]
[387666459,1758803439283,-591.73,0.00019341,2]
[387666461,1758803439292,-480.0,0.00019341,2]
[387666463,1758803439302,-480.0,0.00019341,2]
[387666466,1758803439312,-350.67457774,0.00019341,2]
[387666468,1758803439323,-480.0,0.00019341,2]
[387666471,1758803439333,-480.0,0.00019341,2]
[387666474,1758803439343,-480.0,0.00019341,2]
[387666475,1758803439359,-480.0,0.00019341,2]
[387666477,1758803439369,-543.73,0.00019341,2]
[387666479,1758803439379,-480.0,0.00019341,2]
[387666481,1758803439389,-480.0,0.00019341,2]
[387666483,1758803439398,-480.0,0.00019341,2]
[387666485,1758803439409,-480.0,0.00019341,2]
[387666487,1758803439419,-480.0,0.00019341,2]
[387666489,1758803439430,-480.0,0.00019341,2]
[387666491,1758803439439,-480.0,0.00019341,2]
[387666493,1758803439449,-480.0,0.00019341,2]
[387666495,1758803439459,-346.84167324,0.00019341,2]
[387666497,1758803439469,-480.0,0.00019341,2]
[387666500,1758803439479,-480.0,0.00019341,2]
[387666502,1758803439488,-480.0,0.00019341,2]
[387666503,1758803439498,-480.0,0.00019341,2]
[387666505,1758803439508,-544.18,0.00019341,2]
[387666507,1758803439518,-195.74593567,0.00019341,2]
[387666509,1758803439528,-480.0,0.00019341,2]
[387666511,1758803439538,-480.0,0.00019342,2]
[387666513,1758803439548,-480.0,0.00019342,2]
[387666515,1758803439557,-547.88531598,0.00019342,2]
[387666517,1758803439567,-480.0,0.00019342,2]
[387666519,1758803439577,-485.00094374,0.00019342,2]
[387666521,1758803439588,-480.0,0.00019342,2]
[387666523,1758803439598,-483.63007365,0.00019342,2]
[387666525,1758803439611,-481.31298721,0.00019342,2]
[387666527,1758803439621,-480.0,0.00019342,2]
[387666529,1758803439633,-480.0,0.00019342,2]
[387666531,1758803439642,-480.0,0.00019342,2]
[387666533,1758803439652,-480.0,0.00019342,2]
[387666535,1758803439663,-480.0,0.00019342,2]
[387666537,1758803439673,-480.0,0.00019342,2]
[387666539,1758803439683,-480.0,0.00019342,2]
[387666541,1758803439693,-480.0,0.00019342,2]
[387666543,1758803439702,-480.0,0.00019342,2]
[387666545,1758803439712,-492.12414922,0.00019342,2]
[387666547,1758803439722,-480.0,0.00019342,2]
[387666549,1758803439730,-483.22635894,0.00019342,2]
[387666551,1758803439740,-265.61777111,0.00019342,2]
[387666552,1758803439749,-480.0,0.00019342,2]
[387666554,1758803439758,-480.0,0.00019342,2]
[387666556,1758803439768,-480.0,0.00019342,2]
[387666558,1758803439778,-211.90391677,0.00019342,2]
[387666560,1758803439787,-480.0,0.00019342,2]
[387666562,1758803439796,-480.0,0.00019342,2]
[387666564,1758803439805,-480.0,0.00019342,2]
[387666566,1758803439815,-483.28956828,0.00019342,2]
[387666568,1758803439824,-291.45560762,0.00019342,2]
[387666570,1758803439833,-480.0,0.00019342,2]
[387666572,1758803439843,-480.0,0.00019342,2]
[387666574,1758803439857,-480.0,0.00019342,2]
[387666575,1758803439866,-480.0,0.00019342,2]
[387666577,1758803439877,-518.60200489,0.00019342,2]
[387666579,1758803439887,-617.9764268,0.00019342,2]
[387666581,1758803439896,-480.0,0.00019342,2]
[387666583,1758803439906,-480.0,0.00019342,2]
[387666585,1758803439916,-480.0,0.00019342,2]
[387666587,1758803439926,-480.0,0.00019342,2]
[387666589,1758803439937,-480.0,0.00019342,2]
[387666591,1758803439947,-486.24179082,0.00019342,2]
[387666593,1758803439957,-480.0,0.00019342,2]
[387666595,1758803439967,-480.0,0.00019342,2]
[387666597,1758803439978,-480.0,0.00019342,2]
[387666599,1758803439988,-480.0,0.00019342,2]
[387666601,1758803439998,-480.0,0.00019342,2]
[387666603,1758803440008,-489.99665952,0.00019342,2]
[387666605,1758803440019,-458.28222218,0.00019342,2]
[387666607,1758803440029,-480.0,0.00019342,2]
[387666609,1758803440040,-480.0,0.00019342,2]
[387666611,1758803440050,-480.0,0.00019342,2]
[387666613,1758803440061,-480.0,0.00019342,2]
[387666615,1758803440070,-485.83646162,0.00019342,2]
[387666617,1758803440079,-480.0,0.00019342,2]
[387666619,1758803440089,-500.0,0.00019342,2]
[387666621,1758803440099,-480.0,0.00019342,2]
[387666622,1758803440114,-480.0,0.00019342,2]
[387666624,1758803440125,-480.0,0.00019342,2]
[387666626,1758803440135,-480.0,0.00019342,2]
[387666628,1758803440144,-480.0,0.00019342,2]
[387666630,1758803440154,-480.0,0.00019342,2]
[387666632,1758803440164,-565.02299046,0.00019342,2]
[387666634,1758803440174,-480.0,0.00019342,2]
[387666636,1758803440183,-480.0,0.00019342,2]
[387666638,1758803440193,-480.0,0.00019342,2]
[387666640,1758803440202,-480.0,0.00019342,2]
[387666642,1758803440212,-483.59618953,0.00019342,2]
[387666644,1758803440222,-483.32793954,0.00019342,2]
[387666646,1758803440231,-480.0,0.00019342,2]